Cogmind - Beta 16 @@@ ROGUE MODE // 2025.11.25 @ 21:18:21 Player: Vriska Result: Destroyed by Y-64 Sentinel with KE Penetrator Performance ------------- Evolutions (4) 2000 Regions Visited (13) 2600 Robots Destroyed (63) 315 Value Destroyed (2617) 2617 Prototype IDs (37) 740 Alien Tech Used (0) 0 Bonus (724) 724 TOTAL SCORE: 8996 Bonus ------- Follower Combat Kills 124 Aligned with FarCom 300 Met Data Miner 300 Cogmind --------- Core Integrity 0/850 Matter 106/300 Energy 31/100 System Corruption 5% Temperature Cool (24) Movement Core (50) Location -5/Proximity Caves Parts ------- > --- POWER (2) -------- (None) > --- PROPULSION (4) --- (None) > --- UTILITY (5) ------ Signal Interpreter 0b10 Decoder Chip [Skirmisher] Improved Targeting Computer > --- WEAPON (4) ------- (None) > --- INVENTORY (5) ---- Heavy Plasma Cannon Heavy Plasma Cannon Peak State ------------ > --- POWER ------------ Neutrino Core > --- PROPULSION ------- Armored Huge Wheel Armored Huge Wheel > --- UTILITY ---------- Signal Interpreter 0b10 Decoder Chip [Skirmisher] Improved Targeting Computer Layered Heavy Armor Plating > --- WEAPON ----------- High-powered Shotgun High-powered Shotgun Antimatter Cannon Antimatter Cannon > --- INVENTORY -------- Armored Huge Wheel Armored Huge Wheel Remote Datajack [Rating: 62] Favorites ----------- Power Fission Core Engine Light Ion Engine Power Core Fission Core Propulsion Armored Huge Wheel Treads Light Treads Leg Aluminum Leg Wheel Armored Huge Wheel Hover Unit Improved Hover Unit Flight Unit Cesium-ion Thruster Utility Signal Interpreter Device Advanced Sensor Array Processor Signal Interpreter Protection Improved Light Armor Plating Weapon Antimatter Cannon Energy Gun Particle Gun Energy Cannon Heavy Plasma Cannon Ballistic Gun High-powered Shotgun Ballistic Cannon Antimatter Cannon Special Weapon Field Lobotomy Kit Build | -11 -10 -10 -10 -9 -8 -7 -7 -7 -6 -6 -6 -6 -5 ------- Run | Yrd Mat Min Exi Min Mat Fac Low Low Fac Low Low Dat Pro Slots Evolved 8 | . . . . . 4 2 . . 2 . . . . Power 1 | . . . . . . 1 . . . . . . . Propulsion 2 | . . . . . 2 . . . . . . . . Utility 3 | . . . . . 1 1 . . 1 . . . . Weapon 2 | . . . . . 1 . . . 1 . . . . Parts Attached 76 | 5 5 . 1 2 9 17 11 1 12 3 3 . 7 Power 11 | 1 . . . 1 1 1 1 . 2 2 . . 2 Engine 6 | 1 . . . 1 1 . . . 1 2 . . . Core 5 | . . . . . . 1 1 . 1 . . . 2 Reactor . | . . . . . . . . . . . . . . Propulsion 22 | 2 2 . . . 4 5 4 . 3 . . . 2 Treads 3 | 2 . . . . . . . . 1 . . . . Leg 7 | . . . . . . 3 4 . . . . . . Wheel 8 | . 2 . . . 2 . . . 2 . . . 2 Hover 2 | . . . . . 1 1 . . . . . . . Flight 2 | . . . . . 1 1 . . . . . . . Utility 19 | . 1 . . 1 2 5 3 . 3 1 3 . . Device 6 | . . . . 1 . 2 1 . 2 . . . . Storage . | . . . . . . . . . . . . . . Processor 5 | . 1 . . . 1 1 . . 1 . 1 . . Hackware . | . . . . . . . . . . . . . . Protection 8 | . . . . . 1 2 2 . . 1 2 . . Artifact . | . . . . . . . . . . . . . . Weapon 24 | 2 2 . 1 . 2 6 3 1 4 . . . 3 Energy Gun 4 | . . . . . . 2 2 . . . . . . Energy Cannon 3 | . . . . . . . . 1 . . . . 2 Ballistic Gun 10 | 2 2 . . . 2 . 1 . 2 . . . 1 Ballistic Cannon 5 | . . . . . . 3 . . 2 . . . . Launcher . | . . . . . . . . . . . . . . Special Weapon 2 | . . . 1 . . 1 . . . . . . . Impact Weapon . | . . . . . . . . . . . . . . Slashing Weapon . | . . . . . . . . . . . . . . Piercing Weapon . | . . . . . . . . . . . . . . Special Melee Weapon . | . . . . . . . . . . . . . . Unidentified Prototypes 5 | . . . 1 . 1 1 . . 2 . . . . Parts Lost 37 | . . . . . 3 3 12 3 . 2 2 . 12 Power 9 | . . . . . 1 1 2 . . 1 2 . 2 Propulsion 10 | . . . . . . 1 5 1 . . . . 3 Utility 6 | . . . . . 1 . 3 . . 1 . . 1 Weapon 12 | . . . . . 1 1 2 2 . . . . 6 Highest Loss Streak 8 | . . . . . 2 1 8 3 . 1 1 . 6 To Critical Strikes 2 | . . . . . . . 2 . . . . . . Average Backups 3 | . 2 5 5 4 3 2 4 4 3 3 3 3 2 Power . | . 1 1 1 . . . . . . . . . . Propulsion . | . . 2 2 2 . . . . . 2 2 2 1 Utility 1 | . . . . . 1 2 3 2 1 . . . . Weapon . | . . 2 2 2 . . . 1 . . . . . Tool/Special . | . . . . . . . . . . . . . . Unused Backups 1 | . . . . . . . . . 1 . . . . Power . | . . . . . . . . . . . . . . Propulsion . | . . . . . . . . . . . . . . Utility 1 | . . . . . . . . . 1 . . . . Weapon . | . . . . . . . . . . . . . . Tool/Special . | . . . . . . . . . . . . . . Average Slot Usage (%) 76 | . 71 85 85 86 88 86 75 47 57 83 75 66 60 Engine 4 | . 14 14 14 14 9 7 . . . 3 2 . . Core 3 | . . . . . . 3 3 . 4 6 4 . 5 Leg 5 | . . . . . . 2 20 5 . . . . . Wheel 12 | . 12 28 28 28 30 19 . . 9 13 13 13 10 Device 4 | . . . . 1 1 . 5 6 9 13 1 . . Processor 14 | . 2 14 14 14 15 20 14 7 9 13 19 20 20 Protection 5 | . . . . . 6 8 7 12 4 5 5 6 4 Energy Gun 2 | . . . . . . . 8 12 . . . . . Ballistic Gun 9 | . 27 28 17 14 18 . 5 . 6 13 13 13 9 Ballistic Cannon 8 | . . . . . . 16 7 . 9 13 13 13 8 Special Weapon 1 | . . . 10 14 4 3 . . . . . . . Peak Build Rating 62 | 5 10 10 18 19 30 38 30 22 58 58 61 56 62 Average Rating 35 | 3 6 10 16 18 23 31 24 16 40 57 58 56 47 On Entrance 25 | . 5 10 10 18 19 20 30 18 2 58 58 56 56 Avg Prop Armor Cover (%) 3 | . . . . . 2 1 . . 7 . 4 4 4 Naked Turns . | . . . . . . . . . . . . . . Heaviest Build 56 | 6 9 9 14 18 29 35 25 24 43 43 52 42 56 Greatest Support 56 | 40 40 24 24 24 48 40 48 10 56 56 56 28 56 Greatest Overweight (x) 8 | . 1 . . . . 2 2 2 8 . 1 1 6 Average Overweight (x) . | . . . . . . . . . . . . 1 . Largest Inventory Capacity 5 | 5 5 5 5 5 5 5 5 5 5 5 5 5 5 Average Capacity 5 | 5 5 5 5 5 5 5 5 5 5 5 5 5 5 Most Carried 5 | 1 5 5 5 5 5 5 5 5 5 5 5 5 5 Average Carried 4 | . 2 5 5 4 3 2 4 4 4 5 5 5 3 Final Capacity 5 | 5 5 5 5 5 5 5 5 5 5 5 5 5 5 Final Carried 5 | 1 5 5 5 4 4 5 5 5 5 5 5 5 2 Class Distribution -------------------- 30% | Gunner 28% | Skirmisher 25% | Mutant 12% | Scavenger-Gunner Dominant Class ---------------- Mutant | -10/Materials Mutant | -10/Mines Mutant | -10/Exiles Mutant | -9/Mines Mutant | -8/Materials Gunner | -7/Factory Scavenger-Gunner | -7/Lower Caves Scavenger-Mutant | -7/Lower Caves Skirmisher | -6/Factory Skirmisher | -6/Lower Caves Gunner | -6/Lower Caves Gunner | -6/Data Miner Gunner | -5/Proximity Caves Resources | -11 -10 -10 -10 -9 -8 -7 -7 -7 -6 -6 -6 -6 -5 ----------- Run | Yrd Mat Min Exi Min Mat Fac Low Low Fac Low Low Dat Pro Matter Collected 2716 | 250 80 . . 56 232 553 593 . 233 370 202 . 147 Remotely . | . . . . . . . . . . . . . . Salvage Created 2082 | . 96 . . . 305 553 639 . 132 74 74 . 209 Parts 100 | . 7 . . . 13 28 26 . 7 1 4 . 14 Haulers Intercepted . | . . . . . . . . . . . . . . Recyclers Shooed . | . . . . . . . . . . . . . . Parts Field Recycled . | . . . . . . . . . . . . . . Retrieved Matter . | . . . . . . . . . . . . . . Parts Self-Destructed 41 | . . . . . . . 20 . . . 4 . 17 Prevented . | . . . . . . . . . . . . . . Parts Restored . | . . . . . . . . . . . . . . Kills | -11 -10 -10 -10 -9 -8 -7 -7 -7 -6 -6 -6 -6 -5 ------- Run | Yrd Mat Min Exi Min Mat Fac Low Low Fac Low Low Dat Pro Combat Hostiles Destroyed 58 | . 2 . . . 8 15 13 . 3 3 6 . 8 Guns 30 | . 2 . . . 8 . 7 . 2 2 2 . 7 Cannons 28 | . . . . . . 15 6 . 1 1 4 . 1 Classes Destroyed 10 | . 1 . . . 2 4 2 . . 1 . . . Recycler 1 | . . . . . . 1 . . . . . . . Watcher 1 | . . . . . . 1 . . . . . . . Swarmer 17 | . . . . . 2 1 3 . . . 6 . 5 Grunt 25 | . 2 . . . 5 8 7 . . . . . 3 Brawler 3 | . . . . . . . 3 . . . . . . Sentry 7 | . . . . . 1 2 1 . 2 1 . . . Specialist 2 | . . . . . . 2 . . . . . . . Programmer 5 | . . . . . . 2 1 . 1 1 . . . Behemoth 1 | . . . . . . . . . . 1 . . . Mutant 1 | . . . . . . . 1 . . . . . . Best Kill Streak 5 | . 2 . . . 4 5 4 . 1 1 4 . 4 Combat Bots Only 4 | . 2 . . . 4 4 4 . 1 1 4 . 4 Max Kills in Single Turn 2 | . 1 . . . 2 2 1 . 1 1 1 . 2 Gunslinging . | . . . . . . . . . . . . . . Exploded . | . . . . . . . . . . . . . . Melee . | . . . . . . . . . . . . . . Uniques/NPCs Destroyed . | . . . . . . . . . . . . . . Combat | -11 -10 -10 -10 -9 -8 -7 -7 -7 -6 -6 -6 -6 -5 -------- Run | Yrd Mat Min Exi Min Mat Fac Low Low Fac Low Low Dat Pro Hostile Shots Fired 693 | . 11 . . 3 48 106 101 50 42 107 63 . 162 Missed 198 | . . . . 1 14 39 32 14 12 29 23 . 34 Hits 495 | . 11 . . 2 34 67 69 36 30 78 40 . 128 Melee 7 | . . . . . . . 7 . . . . . . Projectile 488 | . 11 . . 2 34 67 62 36 30 78 40 . 128 AOE 1 | . . . . 1 . . . . . . . . . Critical Strikes 26 | . . . . 1 4 4 5 . . 2 . . 10 Damage Taken 7747 | . 138 . . 98 793 760 1368 534 275 753 616 . 2412 Core 1429 | . 28 . . 45 80 81 173 147 21 116 64 . 674 Absorbed by Shields . | . . . . . . . . . . . . . . Core Remaining (%) 74 | 100 . . . 70 85 . . 42 . . . . . Volleys Fired 223 | . 5 . . 5 23 39 47 5 8 29 14 . 48 Largest 3 | . 2 . . 1 2 3 3 3 2 2 2 . 3 Hottest 210 | . 46 . . 23 46 113 170 210 66 66 66 . 180 Shots Fired 425 | . 10 . . 5 42 86 103 12 16 53 28 . 70 Gun 219 | . 10 . . 4 38 . 57 10 10 28 8 . 54 Cannon 198 | . . . . . . 84 46 2 6 25 20 . 15 Launcher . | . . . . . . . . . . . . . . Special 8 | . . . . 1 4 2 . . . . . . 1 Kinetic 369 | . 10 . . 4 38 84 75 . 16 53 28 . 61 Thermal 48 | . . . . . . . 28 12 . . . . 8 Explosive . | . . . . . . . . . . . . . . Electromagnetic . | . . . . . . . . . . . . . . Robot Hit Streak 15 | . 5 . . 2 6 15 9 2 4 5 3 . 8 Robot Miss Streak 7 | . 3 . . 5 5 1 7 6 4 6 5 . 7 Penetration Max 1 | . . . . . . 1 . . . . . . . Secondary Targets 6 | . . . . . 3 . 1 . . . 2 . . Max Gunslinging Chain 1 | . . . . . 1 . 1 . . . 1 . . Shots Hit Robots 258 | . 7 . . 3 34 57 61 3 11 25 12 . 45 Core Hits 161 | . 6 . . . 19 25 61 1 8 10 8 . 23 Critical Kills . | . . . . . . . . . . . . . . Critical Parts Destroyed . | . . . . . . . . . . . . . . Critical Strikes 9 | . . . . . . 3 3 . . . 3 . . Burn 1 | . . . . . . . 1 . . . . . . Blast 8 | . . . . . . 3 2 . . . 3 . . Melee Attacks . | . . . . . . . . . . . . . . Impact . | . . . . . . . . . . . . . . Slashing . | . . . . . . . . . . . . . . Piercing . | . . . . . . . . . . . . . . Sneak Attacks . | . . . . . . . . . . . . . . Combat Hostiles . | . . . . . . . . . . . . . . Follow-up Attacks . | . . . . . . . . . . . . . . Damage Inflicted 5957 | . 111 . . 19 469 1602 1398 46 280 679 369 . 984 Guns 2691 | . 111 . . 19 469 . 797 46 171 373 111 . 594 Cannons 3248 | . . . . . . 1602 601 . 109 306 258 . 372 Explosions . | . . . . . . . . . . . . . . Melee . | . . . . . . . . . . . . . . Ramming 18 | . . . . . . . . . . . . . 18 Kinetic 5444 | . 111 . . 19 469 1602 1141 . 280 679 369 . 774 Thermal 495 | . . . . . . . 257 46 . . . . 192 Explosive . | . . . . . . . . . . . . . . Electromagnetic . | . . . . . . . . . . . . . . Impact . | . . . . . . . . . . . . . . Slashing . | . . . . . . . . . . . . . . Piercing . | . . . . . . . . . . . . . . Highest Corruption 10 | . . . . . . . 10 10 3 5 5 5 5 Average Corruption 4 | . . . . . . . 2 10 2 4 5 5 5 Corruption Purged . | . . . . . . . . . . . . . . Corruption Blocked . | . . . . . . . . . . . . . . Effects 85 | . . . . . . . 10 6 5 30 12 2 20 Message Errors 21 | . . . . . . . 3 1 1 7 4 1 4 Matter Fused 24 | . . . . . . . 1 2 2 6 5 1 7 Heat Flow Errors 10 | . . . . . . . 1 1 1 2 2 . 3 Energy Discharges 9 | . . . . . . . 2 . . 4 . . 3 Parts Rejected 1 | . . . . . . . . . . . . . 1 Parts Fused 2 | . . . . . . . . . . 1 1 . . Data Loss (minor) 12 | . . . . . . . 2 1 1 7 . . 1 Data Loss (major) 3 | . . . . . . . 1 . . 2 . . . Misfires 2 | . . . . . . . . 1 . 1 . . . Alerts 1 | . . . . . . . . . . . . . 1 Overload Shots . | . . . . . . . . . . . . . . Overflow Damage 26 | . . . . . . 26 . . . . . . . Projectiles 26 | . . . . . . 26 . . . . . . . Explosions . | . . . . . . . . . . . . . . Melee . | . . . . . . . . . . . . . . Knockbacks 22 | . . . . . . 17 3 . . . . . 2 Impact . | . . . . . . . . . . . . . . Kinetic 21 | . . . . . . 16 3 . . . . . 2 Secondary 1 | . . . . . . 1 . . . . . . . Self-Inflicted Damage 8 | . . . . . . . . . . . . . 8 Shots . | . . . . . . . . . . . . . . Rammed 10 | . . . . . . . . . . . . . 10 Targets Rammed 10 | . . . . . . . . . . . . . 10 Kicked . | . . . . . . . . . . . . . . Crushed . | . . . . . . . . . . . . . . Highest Temperature 504 | . 4 . . . 54 209 504 415 111 122 181 . 503 Average Temperature 110 | . 2 . . . 13 73 140 199 31 35 36 . 168 Received Heat Transfer 1948 | . 81 . . 12 339 252 418 . 66 96 . . 684 Effects 19 | . . . . . . . 4 2 . . . . 13 Shutdowns 3 | . . . . . . . . . . . . . 3 Energy Bleed 2 | . . . . . . . 1 . . . . . 1 Interference 3 | . . . . . . . 1 2 . . . . . Matter Decay 1 | . . . . . . . . . . . . . 1 Damage (minor) 2 | . . . . . . . 2 . . . . . . Damage (major) 8 | . . . . . . . . . . . . . 8 Siege Activations . | . . . . . . . . . . . . . . Martial Activations . | . . . . . . . . . . . . . . Shielding Activations . | . . . . . . . . . . . . . . Robots Disrupted . | . . . . . . . . . . . . . . Combat Hostiles . | . . . . . . . . . . . . . . Robots Corrupted . | . . . . . . . . . . . . . . Combat Hostiles . | . . . . . . . . . . . . . . Parts Fried . | . . . . . . . . . . . . . . Impact Corruptions . | . . . . . . . . . . . . . . Robots Melted . | . . . . . . . . . . . . . . Combat Hostiles . | . . . . . . . . . . . . . . Parts Melted 2 | . . . . . . . 2 . . . . . . Heat Transferred 1040 | . . . . . . . 629 111 . . . . 300 Parts Sabotaged . | . . . . . . . . . . . . . . Parts Stolen . | . . . . . . . . . . . . . . Parts Stripped . | . . . . . . . . . . . . . . Power Chain Reactions . | . . . . . . . . . . . . . . Alert | -11 -10 -10 -10 -9 -8 -7 -7 -7 -6 -6 -6 -6 -5 ------- Run | Yrd Mat Min Exi Min Mat Fac Low Low Fac Low Low Dat Pro Maximum Alert Level 1 | . . . . . . 1 . . . . . . . Low Security (%) 97 | 100 100 100 . 100 100 91 . . 100 . . . . Level 1 2 | . . . . . . 8 . . . . . . . Level 2 . | . . . . . . . . . . . . . . Level 3 . | . . . . . . . . . . . . . . Level 4 . | . . . . . . . . . . . . . . Level 5 . | . . . . . . . . . . . . . . High Security . | . . . . . . . . . . . . . . Max Security . | . . . . . . . . . . . . . . Peak Influence 234 | . 40 11 . . 138 234 . . 31 . . . . Initial 40 | . . 11 . . . 40 . . . . . . . Average 35 | . 10 6 . . 71 58 . . 4 . . . . Influence Increases 1751 | . 50 . . . 396 429 275 . 93 95 208 . 205 Destroy 0b10 Robot/C 1280 | . 40 . . . 240 300 240 . 60 60 160 . 180 Destroy 0b10 Robot/NC 20 | . . . . . 5 10 5 . . . . . . Destroy Leader 244 | . 10 . . . 62 62 30 . 30 20 20 . 10 Allied During Kill 43 | . . . . . 15 . . . . . 28 . . Disable Machine 90 | . . . . . 45 45 . . . . . . . Destroy Structure 44 | . . . . . 29 12 . . 3 . . . . Lose Combat Pursuer 30 | . . . . . . . . . . 15 . . 15 Influence Decreases 1742 | . 20 29 1 . 306 297 468 29 63 125 148 60 196 Entered New Map 231 | . . 19 1 . . 50 83 6 . 12 . 60 . Time Decay 1211 | . 20 10 . . 216 217 325 23 63 113 128 . 96 Lost Part 220 | . . . . . 30 30 60 . . . 20 . 80 Lost Ally 80 | . . . . . 60 . . . . . . . 20 Squads Dispatched 11 | . . . . . 5 4 . . 2 . . . . Investigation . | . . . . . . . . . . . . . . Extermination 2 | . . . . . . 1 . . 1 . . . . Reinforcement 6 | . . . . . 2 3 . . 1 . . . . Assault . | . . . . . . . . . . . . . . Garrison 3 | . . . . . 3 . . . . . . . . Intercept . | . . . . . . . . . . . . . . Searches Triggered . | . . . . . . . . . . . . . . Construction Impeded 2 | . . . . . 1 1 . . . . . . . Haulers Reinforced . | . . . . . . . . . . . . . . Active Scanning Responses . | . . . . . . . . . . . . . . Cargo Convoy Interrupts . | . . . . . . . . . . . . . . Stealth | -11 -10 -10 -10 -9 -8 -7 -7 -7 -6 -6 -6 -6 -5 --------- Run | Yrd Mat Min Exi Min Mat Fac Low Low Fac Low Low Dat Pro Distress Signals 4 | . . . . 1 3 . . . . . . . . Communications Jammed . | . . . . . . . . . . . . . . Distress Signals . | . . . . . . . . . . . . . . Times Spotted 87 | . 3 . . 4 17 16 14 3 4 4 8 . 14 Peak Tracking Total 7 | . 2 . . 3 6 3 4 3 1 1 4 . 7 Tactical Retreats 2 | . . . . . . . . . . 1 . . 1 Traps | -11 -10 -10 -10 -9 -8 -7 -7 -7 -6 -6 -6 -6 -5 ------- Run | Yrd Mat Min Exi Min Mat Fac Low Low Fac Low Low Dat Pro Traps Triggered 1 | . . . . . . 1 . . . . . . . Indirectly . | . . . . . . . . . . . . . . Trap Hack Attempts . | . . . . . . . . . . . . . . Triggered . | . . . . . . . . . . . . . . Disarmed . | . . . . . . . . . . . . . . Reprogrammed . | . . . . . . . . . . . . . . Reused . | . . . . . . . . . . . . . . Traps Extracted . | . . . . . . . . . . . . . . Installed . | . . . . . . . . . . . . . . Triggered . | . . . . . . . . . . . . . . Machines | -11 -10 -10 -10 -9 -8 -7 -7 -7 -6 -6 -6 -6 -5 ---------- Run | Yrd Mat Min Exi Min Mat Fac Low Low Fac Low Low Dat Pro Machines Disabled 9 | . . . . . 3 3 2 . . . . . 1 Max in Single Turn 1 | . . . . . . 1 1 . . . . . 1 Garrison Access 1 | . . . . . . 1 . . . . . . . Machines Repaired . | . . . . . . . . . . . . . . Machines Dismantled . | . . . . . . . . . . . . . . Machines Sabotaged . | . . . . . . . . . . . . . . Overloaded Fab Kills . | . . . . . . . . . . . . . . Hacking | -11 -10 -10 -10 -9 -8 -7 -7 -7 -6 -6 -6 -6 -5 --------- Run | Yrd Mat Min Exi Min Mat Fac Low Low Fac Low Low Dat Pro Machines Accessed 15 | . 1 . 2 . 1 2 1 . 2 . 2 4 . Terminals 2 | . 1 . . . 1 . . . . . . . . Fabricators 1 | . . . . . . . . . 1 . . . . Repair Stations . | . . . . . . . . . . . . . . Recycling Units 1 | . . . . . . 1 . . . . . . . Scanalyzers 1 | . . . . . . . . . 1 . . . . Garrison Access 1 | . . . . . . 1 . . . . . . . Total Hacks 65 | . 4 . 10 . 3 3 4 . 3 . 6 32 . Successful 59 | . 2 . 10 . 1 3 4 . 1 . 6 32 . Failed 5 | . 2 . . . 2 . . . 1 . . . . Catastrophic 2 | . . . . . 1 . . . 1 . . . . Database Lockouts 1 | . . . . . . . . . 1 . . . . Manual 1 | . . . 1 . . . . . . . . . . Terminals 7 | . 4 . . . 3 . . . . . . . . Fabricators 1 | . . . . . . . . . 1 . . . . Repair Stations . | . . . . . . . . . . . . . . Recycling Units 2 | . . . . . . 2 . . . . . . . Scanalyzers 2 | . . . . . . . . . 2 . . . . Garrison Access 1 | . . . . . . 1 . . . . . . . Terminal Hacks 55 | . 2 . 10 . 1 . 4 . . . 6 32 . Record 32 | . 2 . 9 . 1 . 4 . . . 5 11 . Part Schematic 12 | . . . . . . . . . . . . 12 . Robot Schematic 6 | . . . . . . . . . . . . 6 . Prototype ID Bank 3 | . . . . . . . . . . . . 3 . Open Door 1 | . . . . . . . . . . . 1 . . Proto ID Catalog 1 | . . . 1 . . . . . . . . . . Fabricator Hacks . | . . . . . . . . . . . . . . Repair Station Hacks . | . . . . . . . . . . . . . . Recycling Unit Hacks 2 | . . . . . . 2 . . . . . . . Report Inventory 1 | . . . . . . 1 . . . . . . . Retrieve Components 1 | . . . . . . 1 . . . . . . . Scanalyzer 1 | . . . . . . . . . 1 . . . . Retrieve Study 1 | . . . . . . . . . 1 . . . . Garrison Access Hacks 1 | . . . . . . 1 . . . . . . . Seal Access 1 | . . . . . . 1 . . . . . . . Unauthorized Hacks . | . . . . . . . . . . . . . . Terminals . | . . . . . . . . . . . . . . Fabricators . | . . . . . . . . . . . . . . Repair Stations . | . . . . . . . . . . . . . . Recycling Units . | . . . . . . . . . . . . . . Scanalyzers . | . . . . . . . . . . . . . . Garrison Access . | . . . . . . . . . . . . . . Data Cores Recovered . | . . . . . . . . . . . . . . Used . | . . . . . . . . . . . . . . Hacking Detections 2 | . . . . . 1 . . . 1 . . . . Full Trace Events 1 | . . . . . 1 . . . . . . . . Feedback Events . | . . . . . . . . . . . . . . Feedback Blocked . | . . . . . . . . . . . . . . Robot Schematics Acquired 6 | . . . . . . . . . . . . 6 . Robots Built . | . . . . . . . . . . . . . . Authchips . | . . . . . . . . . . . . . . Time . | . . . . . . . . . . . . . . Total Robot Build Rating . | . . . . . . . . . . . . . . Part Schematics Acquired 12 | . . . . . . . . . . . . 12 . Parts Built . | . . . . . . . . . . . . . . Authchips . | . . . . . . . . . . . . . . Time . | . . . . . . . . . . . . . . Total Part Build Rating . | . . . . . . . . . . . . . . Part Studies Acquired 1 | . . . . . . . . . 1 . . . . Parts Repaired . | . . . . . . . . . . . . . . Time . | . . . . . . . . . . . . . . Parts Recycled . | . . . . . . . . . . . . . . Recycled Matter . | . . . . . . . . . . . . . . Retrieved Matter . | . . . . . . . . . . . . . . Retrieved Components 2 | . . . . . . 2 . . . . . . . Parts Scanalyzed . | . . . . . . . . . . . . . . Part Schematics Acquired . | . . . . . . . . . . . . . . Parts Damaged . | . . . . . . . . . . . . . . Bothacking | -11 -10 -10 -10 -9 -8 -7 -7 -7 -6 -6 -6 -6 -5 ------------ Run | Yrd Mat Min Exi Min Mat Fac Low Low Fac Low Low Dat Pro Used RIF Installer . | . . . . . . . . . . . . . . Robots Hacked 2 | . . . . . . 1 . . . . . . 1 Non-combat 1 | . . . . . . 1 . . . . . . . Combat 1 | . . . . . . . . . . . . . 1 Robot Hacks Applied 2 | . . . . . . 1 . . . . . . 1 parse_system 2 | . . . . . . 1 . . . . . . 1 Relay Couplers Released . | . . . . . . . . . . . . . . Fabnet Peak Effective % . | . . . . . . . . . . . . . . Robots Rewired . | . . . . . . . . . . . . . . Allies Hacked . | . . . . . . . . . . . . . . Hacks Repelled . | . . . . . . . . . . . . . . Allies | -11 -10 -10 -10 -9 -8 -7 -7 -7 -6 -6 -6 -6 -5 -------- Run | Yrd Mat Min Exi Min Mat Fac Low Low Fac Low Low Dat Pro Total Allies 10 | . . 2 . 1 4 . . . . . 2 . 1 Largest Group 2 | . . 2 1 1 2 . . . . . 2 . 1 Highest-Rated Group 111 | . . 38 31 34 111 . . . . . 40 . 96 Highest-Rated Ally 96 | . . 31 31 34 90 . . . . . 20 . 96 Total Orders . | . . . . . . . . . . . . . . Ally Attacks 26 | . . . . . 10 . . . . . 2 . 14 Total Damage 1165 | . . . . . 723 . . . . . 110 . 332 Kills 8 | . . . . . 5 . . . . . 2 . 1 Allies Corrupted . | . . . . . . . . . . . . . . Allies Melted . | . . . . . . . . . . . . . . Field Lobotomies 5 | . . . . 1 4 . . . . . . . . Intel | -11 -10 -10 -10 -9 -8 -7 -7 -7 -6 -6 -6 -6 -5 ------- Run | Yrd Mat Min Exi Min Mat Fac Low Low Fac Low Low Dat Pro Active Infowar (turns) 3889 | . . . . 25 60 56 403 . 673 1310 457 98 807 Sensors 1827 | . . . . . . . . . 416 1310 101 . . Traps 2436 | . . . . . . 43 403 . 672 1310 8 . . Decoding 1353 | . . . . . . . . . . . 448 98 807 ECM 98 | . . . . 25 60 13 . . . . . . . Robot Analysis Total . | . . . . . . . . . . . . . . Derelict Logs Recovered 9 | . . . . 1 . . 2 . . 3 2 . 1 Drone Launches . | . . . . . . . . . . . . . . Drone Recoveries . | . . . . . . . . . . . . . . Exploration | -11 -10 -10 -10 -9 -8 -7 -7 -7 -6 -6 -6 -6 -5 ------------- Run | Yrd Mat Min Exi Min Mat Fac Low Low Fac Low Low Dat Pro Turns Passed 8044 | 65 178 37 581 263 528 840 2060 125 695 1310 457 98 807 Spaces Moved 6667 | 36 125 41 644 237 482 617 1356 75 674 1201 383 86 710 Core 465 | 4 5 . . . . . . 29 238 . . . 189 Treads 85 | 32 53 . . . . . . . . . . . . Legs 1459 | . . . . . . 57 1356 46 . . . . . Wheels 4658 | . 67 41 644 237 482 560 . . 436 1201 383 86 521 Hover . | . . . . . . . . . . . . . . Flight . | . . . . . . . . . . . . . . Fastest Speed 50 | 50 90 90 90 90 90 90 120 50 50 100 100 115 50 Average Speed 105 | 147 120 90 90 90 90 93 140 136 86 100 102 115 95 Slowest Speed 450 | 160 160 90 90 90 90 120 260 260 450 100 115 115 350 Overloaded Moves . | . . . . . . . . . . . . . . Propulsion Burnouts . | . . . . . . . . . . . . . . Robots Hopped . | . . . . . . . . . . . . . . Potential Cave-ins . | . . . . . . . . . . . . . . Cave-ins Triggered . | . . . . . . . . . . . . . . Exploration Rate (%) 47 | 4 31 8 90 47 29 16 98 13 14 99 62 70 82 Regions Visited 13 Branch Regions 9 Pre-discovered Areas 2 | . . . . . . . 1 . . . . 1 . Known Exits Taken 12 | . 1 1 1 1 1 1 1 1 1 1 1 1 . Unknown Exits Taken 1 | 1 . . . . . . . . . . . . . Scrap Searched 15 | . . . . 1 . . 7 . . 2 2 . 3 Spaces Dug 11 | . . . . . . . . . . 11 . . . Terrain Destroyed 54 | . . . . . . 13 6 . 3 17 12 . 3 Melee . | . . . . . . . . . . . . . . Projectile 54 | . . . . . . 13 6 . 3 17 12 . 3 AOE . | . . . . . . . . . . . . . . Terrain Rammed . | . . . . . . . . . . . . . . Walls Destroyed . | . . . . . . . . . . . . . . Machines Disabled . | . . . . . . . . . . . . . . Actions | -11 -10 -10 -10 -9 -8 -7 -7 -7 -6 -6 -6 -6 -5 --------- Run | Yrd Mat Min Exi Min Mat Fac Low Low Fac Low Low Dat Pro Total 7325 | 45 142 40 645 281 530 813 1430 91 768 1256 419 85 780 Wait 262 | 4 . . . 36 8 106 2 7 59 24 16 . . Move 6654 | 35 124 40 643 236 481 616 1355 74 673 1200 382 85 710 Hop . | . . . . . . . . . . . . . . Pick Up 28 | 1 4 . . 1 6 8 5 . 3 . . . . Fast Attach 58 | 5 5 . 1 . 3 13 7 . 13 3 3 . 5 Attach 34 | . . . . 2 6 11 6 1 4 . . . 4 Detach 11 | . . . . . . 5 1 1 1 . . . 3 Swap . | . . . . . . . . . . . . . . Drop 42 | . 4 . 1 1 3 15 4 3 7 . 4 . . Fire 223 | . 5 . . 5 23 39 47 5 8 29 14 . 48 Melee . | . . . . . . . . . . . . . . Ram 10 | . . . . . . . . . . . . . 10 Kick . | . . . . . . . . . . . . . . Crush . | . . . . . . . . . . . . . . Escape Stasis . | . . . . . . . . . . . . . . Rewire 3 | . . . . . . . 3 . . . . . . Trap . | . . . . . . . . . . . . . . Miscellaneous . | . . . . . . . . . . . . . . Route ------- -11/Scrapyard -10/Materials -10/Mines (discovered 2 exits: *Mat / *Exi) -10/Exiles (discovered 2 exits: *Min x2) -9/Mines -8/Materials -7/Factory -7/Lower Caves -7/Lower Caves -6/Factory -6/Lower Caves -6/Lower Caves (discovered 2 exits: *Fac / *Dat) -6/Data Miner -5/Proximity Caves History --------- Turn | Location | Event 39 | -11/Scrapyard | Discovered new exit (range 14) 66 | -11/Scrapyard | Entered Materials 226 | -10/Materials | Discovered new exit (range 7) 233 | -10/Materials | Identified exit to Mines 244 | -10/Materials | Entered Mines 249 | -10/Mines | Met a Derelict bent on vengeance 255 | -10/Mines | Discovered new exit (range 12) 267 | -10/Mines | Identified exit to Materials 277 | -10/Mines | Deemed a non-threat by the Exiles lab entrance 277 | -10/Mines | Discovered new exit (range 5) 280 | -10/Mines | Identified exit to Exiles 281 | -10/Mines | Entered Exiles 281 | -10/Exiles | Accompanied by 1 ally 293 | -10/Exiles | Discovered new exit (range 15) 306 | -10/Exiles | Identified exit to Mines 311 | -10/Exiles | Led the pair of lost Derelicts to a safe place 315 | -10/Exiles | Build established: Mutant 323 | -10/Exiles | Met 8R-AWN 338 | -10/Exiles | Met EX-HEX 371 | -10/Exiles | Met EX-BIN 388 | -10/Exiles | Aligned with FarCom system 389 | -10/Exiles | Given EX-Vault access code 411 | -10/Exiles | Opened EX-Vault 415 | -10/Exiles | Found Prototype Special Weapon 415 | -10/Exiles | Identified Field Lobotomy Kit 436 | -10/Exiles | Warned to stay clear of 0b10 Research branches 463 | -10/Exiles | Met EX-DEC 523 | -10/Exiles | Discovered exit to Mines (range 11) 581 | -10/Exiles | Visited The Gauntlet 862 | -10/Exiles | Left Exiles lab with Field Lobotomy Kit 862 | -10/Exiles | Entered Mines 863 | -9/Mines | Assembled infested the area 868 | -9/Mines | Assisted by a Guerilla fighting off Assembled 1030 | -9/Mines | Assimilated D-53 Grenadier with FLK Orb 1044 | -9/Mines | Learned Materials terminal intel 1117 | -9/Mines | Discovered new exit (range 3) 1119 | -9/Mines | Identified exit to Materials 1125 | -9/Mines | Entered Materials 1125 | -8/Materials | Accompanied by 1 ally 1125 | -8/Materials | Evolved 4 slots: Propulsion x2, Utility x1, Weapon x1 1126 | -8/Materials | Loaded intel: 12 terminal locations 1228 | -8/Materials | Garrison activated, responded to threat 1243 | -8/Materials | Assimilated H-55 Commando with FLK Orb 1284 | -8/Materials | Assimilated Y-45 Defender with FLK Orb 1358 | -8/Materials | Assimilated H-55 Commando with FLK Orb 1386 | -8/Materials | Assimilated H-61 Shepherd with FLK Orb 1425 | -8/Materials | Discovered new exit (range 16) 1440 | -8/Materials | Identified exit to Factory 1653 | -8/Materials | Entered Factory 1653 | -7/Factory | Evolved 2 slots: Power x1, Utility x1 2177 | -7/Factory | Build established: Gunner 2457 | -7/Factory | Discovered new exit (range 16) 2483 | -7/Factory | Identified exit to Lower Caves 2493 | -7/Factory | Entered Lower Caves 2744 | -7/Lower Caves | Lost 4 parts (1p2n1u) 3086 | -7/Lower Caves | Discovered new exit (range 16) 3113 | -7/Lower Caves | Identified exit to Lower Caves 3408 | -7/Lower Caves | Attacked by a delusional Derelict stockpiling Unaware 3609 | -7/Lower Caves | Learned Factory garrison access intel 3727 | -7/Lower Caves | Build established: Scavenger-Gunner 4428 | -7/Lower Caves | Learned location of Extension (-5) 4440 | -7/Lower Caves | Attracted the attention of an 0b10 outpost 4463 | -7/Lower Caves | System corruption reached 10% 4498 | -7/Lower Caves | Lost 8 parts (1p3n2u2w) 4553 | -7/Lower Caves | Entered another Lower Caves area 4665 | -7/Lower Caves | Core integrity fell below 50% 4670 | -7/Lower Caves | Discovered new exit (range 15) 4677 | -7/Lower Caves | Identified exit to Factory 4678 | -7/Lower Caves | Entered Factory 4678 | -6/Factory | Evolved 2 slots: Utility x1, Weapon x1 4679 | -6/Factory | Loaded intel: 4 garrison access locations 4688 | -6/Factory | Lost 3 parts (1n2w) 4949 | -6/Factory | Build established: Mutant 5048 | -6/Factory | Central database locked down 5261 | -6/Factory | Build established: Skirmisher 5361 | -6/Factory | Discovered new exit (range 7) 5372 | -6/Factory | Identified exit to Lower Caves 5373 | -6/Factory | Entered Lower Caves 5508 | -6/Lower Caves | Encountered a Warlord checkpoint 5648 | -6/Lower Caves | Attracted the attention of an 0b10 checkpoint 5793 | -6/Lower Caves | Spotted B-75 Beast 6403 | -6/Lower Caves | Destroyed B-75 Beast 6525 | -6/Lower Caves | Learned location of 1 exit from Factory 6555 | -6/Lower Caves | Discovered new exit (range 14) 6567 | -6/Lower Caves | Identified exit to Lower Caves 6576 | -6/Lower Caves | Learned Factory interactive machine intel 6600 | -6/Lower Caves | Learned Factory stockpile data 6683 | -6/Lower Caves | Entered another Lower Caves area 6742 | -6/Lower Caves | Discovered new exit (range 10) 6750 | -6/Lower Caves | Identified exit to Factory 6781 | -6/Lower Caves | A Commander dispatched an escort 6798 | -6/Lower Caves | Learned Factory stockpile data 6798 | -6/Lower Caves | Learned Extension security intel 6798 | -6/Lower Caves | Learned Factory terminal intel 6798 | -6/Lower Caves | Learned Armory garrison access intel 6935 | -6/Lower Caves | Learned Factory interactive machine intel 7081 | -6/Lower Caves | Build established: Gunner 7127 | -6/Lower Caves | Discovered new exit (range 13) 7139 | -6/Lower Caves | Identified exit to Data Miner 7140 | -6/Lower Caves | Entered Data Miner 7140 | -6/Data Miner | Discovered new exit (range 6) 7146 | -6/Data Miner | Identified exit to Proximity Caves 7162 | -6/Data Miner | Met Data Miner 7189 | -6/Data Miner | Learned location of Section 7 (-3) 7189 | -6/Data Miner | Acquired the access code to Warlord's prototype stash 7213 | -6/Data Miner | Received God Mode back door access code from Data Miner 7238 | -6/Data Miner | Entered Proximity Caves 7274 | -5/Proximity Caves | Learned Factory stockpile data 7721 | -5/Proximity Caves | Lost 4 parts (2n2w) 7814 | -5/Proximity Caves | Attracted the attention of an 0b10 base 7884 | -5/Proximity Caves | Core integrity fell below 50% 7894 | -5/Proximity Caves | Lost 6 parts (2p1u3w) 7941 | -5/Proximity Caves | Escorted by Enhanced Grunt 7995 | -5/Proximity Caves | Spotted B-75 Beast 8012 | -5/Proximity Caves | Attracted the attention of an 0b10 checkpoint 8042 | -5/Proximity Caves | Core integrity fell below 20% 8045 | -5/Proximity Caves | Destroyed by Y-64 Sentinel with KE Penetrator Last Messages --------------- Slug penetrates Wall. Storage Shell breached. Penetrated by Slug. Slug penetrates Wall. Arm. Huge Wheel destroyed. Acquired Hvy. Plasma Cannon. Critical hit (Burn: +37). Penetrated by Slug. Slug penetrates Wall. Machine disabled. Penetrated by Slug. Critical hit (Burn: +37). Enhanced Grunt: "Protecting LRC-V3." Penetrated by Slug. Acquired 7 matter. System corrupted: Matter fused (-5). System corrupted: Energy discharge (-22). Y-64 Sentinel: "INTERCEPTING UNREGISTERED DERELICT." [Achievement: Hydra] Penetrated by Slug. Map ----- +----------------------------------------------------+ | ## #??????????????????????????????????????? | | ### #??????????????????????????????????????? | | # ##### ##?????????????????????????????????????? | | ####?## # ##????????????????????????????????????? | | ###### #????????????????????????????????????? | | # #????????????????????????????????????? | | # #????????????????????????????????????? | | ######### ##????????????????????????????????????? | | ????????####?????????????????????????????????????? | | ?????????????????????????????????????????????????? | | ?????????????????????????????????????????????????? | | ?????????????????????????????????????????????????? | | #?????????????????????????#####?????????????????? | | ##????????#####?????????## ###???????????????? | | #???????## ##???????## ##??????????????? | | #????#### #??????## ##?????????????? | | ?#?##? ##????## ## ##????????????? | | ?## ? ? #????# ### ##???????????? | | #?## ? ? ###?## #### #???????????? | | ??? ? ?# ### #??# #???????????? | | ????? ??# g #??####???????????? | | ???# ? ??# g #####?????????????????? | | ???# ??# Y ##?????????????????????? | | ????? ?## ##??????????????????????? | | ???# ## ####????????????????????? | | ?????????## @ #????????????????????? | | #????????# ### #???????????????????? | | #????????# "#?### #???????????????????? | | #???????## ##?????# #??????????????????? | | #??????## ## ##??????? #??????????????????? | | #?####?# ### ##????????? #?????????????????? | | #?# #?## #?# ##??????????####?????????????????? | | ### #?## #?###????????????????????????????????? | | ## ### #???????######???????????????????????? | | ## #?????### ##??????????????????????? | | # #????## ##?????????????????????? | | ## ###### #?????????????????????? | | ## #?????????????????????? | | ## ### ## ##?????????????????????? | | ### ##?# " ## # #??????????????????????? | | #?# #??### "" ## # ????????????????????? | | #?# ###### """ ## ## "#?????????????????? | | ### # "" ####?? ????????????????? | | ## """ " ##????? ???????????????? | | #### "" "" ##????? # ?????????? | | #??# """ """ ## ?????????? | | # #??# ## "" ?????????? | | ## ##??# ?# """ # ?????????? | | ??##???# ??# "" ## ## ?????????? | | ???????##??# """ #?### ##????????????????? | +----------------------------------------------------+ Best States ------------- Heat Dissipation 37 Energy Generation 28 Energy Capacity 375 Matter Stores 300 Matter Capacity 300 Sight Range 16 Robot Scan Range 16 Terrain Scan Density 10 ECM Strength 2 Armor Coverage 600 Weapon Cycling 15 Evasion (%) 55 Targeting Accuracy 12 Recoil Reduction 2 Item Schematics ----------------- Combat Drone Bay | -6/Data Miner | Free Lgt. Regenerative Plating | -6/Data Miner | Free Enh. Armored Leg | -6/Data Miner | Free Prc. Energy Filter | -6/Data Miner | Free Tiamat Missile Launcher | -6/Data Miner | Free Centrium Wheel | -6/Data Miner | Free Adv. Hardlight Generator | -6/Data Miner | Free Dispersion Rifle | -6/Data Miner | Free Arm. Medium Treads | -6/Data Miner | Free Imp. Fusion Compressor | -6/Data Miner | Free Phase Gun | -6/Data Miner | Free Q-thruster | -6/Data Miner | Free Robot Schematics ------------------ R-10 Processor | -6/Data Miner | Free A-15 Conveyor | -6/Data Miner | Free S-27 Virus | -6/Data Miner | Free X-77 Beamer | -6/Data Miner | Free A-27 Freighter | -6/Data Miner | Free M-30 Cleanser | -6/Data Miner | Free Fabricated ------------ Nothing Repaired ---------- Nothing Studied --------- Remote Datajack | -6/Factory | Hacked Alien Tech Used ----------------- None Achievements -------------- Hydra Item+ Knowing Is Half The Battle Sixth Sense The Oracle Throw Away The Key Well Done Challenges ------------ None Game ------ Seed DispersionTowerInterpreter Manual? 0 Play Time 01:27:33 Cumulative 20.4 hours Start 2025.11.24 @ 02:00:32 End 2025.11.25 @ 21:18:21 Sessions 5 Manual Loads 0 Difficulty Rogue Special Mode None Game No. 40 Rogue 40 Adventurer 0 Explorer 0 Win Type - Total 0 Types 0/0/0/0/0/0/0/0/0/0 Lore% 14 Gallery% 19 Achievement% 15 Wizard Run 0 Options --------- Layout 0 ASCII 0 Keyboard 0 Movement Numpad Keybinds 0 Fullscreen 1 Font 18/SmallcapsGlow Map View 76x50 Zoom Use 0% Tactical HUD 0 Map Filters NONE Filters NONE Steam 1 RUN: 3298f526-825d-49a2-85b2-63124f8c5087